bitfinex/quotes_ETHUSD_20250524
["timestamp","ask_amount","ask_price","bid_price","bid_amount"]
[1748122899201,7.41126405,2531.6,2531.5,52.869]
[1748122900021,7.41126405,2531.6,2531.5,29.226]
[1748122900758,7.41126405,2531.6,2531.5,11.821]
[1748122905794,7.41126405,2531.6,2531.5,11.822]
[1748122909143,7.41126405,2531.6,2531.5,52.738]
[1748122910933,7.41126405,2531.6,2531.4,1.49351013]
[1748122911140,0.84521641,2531.5,2531.4,1.49351013]
[1748122911436,0.84521641,2531.5,2531.4,13.31551013]
[1748122913848,6.58303968,2531.6,2531.4,13.31551013]
[1748122917243,6.58303968,2531.6,2531.5,11.822]
[1748122919247,6.58303968,2531.6,2531.5,29.095]
[1748122919834,6.58303968,2531.6,2531.5,11.822]
[1748122920546,0.55,2531.9,2531.5,11.822]
[1748122920705,0.55,2531.7,2531.5,11.822]
[1748122920906,0.55,2531.7,2531.6,1.49351013]
[1748122929360,0.55,2531.7,2531.6,42.40951013]
[1748122929551,0.55,2531.7,2531.6,18.76651013]
[1748122933361,0.55,2531.7,2531.6,1.49351013]
[1748122935366,6.58303968,2531.7,2531.6,1.49351013]
[1748122939156,6.58303968,2531.7,2531.6,42.27951013]
[1748122939478,6.58303968,2531.7,2531.6,18.63651013]
[1748122940638,6.58303968,2531.7,2531.6,30.45751013]
[1748122940837,6.58303968,2531.7,2531.6,13.31451013]
[1748122949198,6.58303968,2531.7,2531.6,30.45751013]
[1748122949899,7.28153512,2531.7,2531.6,30.45751013]
[1748122950264,7.28153512,2531.7,2531.6,13.31451013]
[1748122952199,6.73525731,2531.7,2531.6,11.821]
[1748122952403,1.24379822,2531.6,2531.0,1.49351013]
[1748122952697,0.55,2531.4,2531.1,11.821]
[1748122952895,6.08242799,2531.5,2531.1,11.821]
[1748122952896,1.6053,2531.2,2531.1,11.821]
[1748122954698,0.55,2531.1,2531.0,1.49351013]
[1748122954878,0.76553,2531.1,2531.0,13.31451013]
[1748122955796,0.76553,2531.1,2531.0,1.49351013]
[1748122956001,6.79856968,2531.1,2531.0,13.31451013]
[1748122959293,6.79856968,2531.1,2531.0,54.10751013]
[1748122959907,6.79856968,2531.1,2531.0,30.46051013]
[1748122962568,6.79856968,2531.1,2531.0,11.824]
[1748122965607,6.79856968,2531.1,2530.7,1.49351013]
[1748122965810,6.79856968,2531.1,2531.0,11.825]
[1748122967310,6.79856968,2531.1,2529.4,8.0]
[1748122967311,0.55,2530.9,2529.4,8.0]
[1748122967499,1.5923,2530.7,2530.4,1.49351013]
[1748122967813,0.55,2530.5,2530.2,1.49351013]
[1748122967974,7.07533968,2530.6,2530.2,1.49351013]
[1748122967975,0.55,2530.3,2530.2,1.49351013]
[1748122968314,0.55,2530.3,2530.2,13.31851013]
[1748122969217,0.55,2530.3,2530.2,42.16351013]
[1748122969412,0.55,2530.3,2530.2,53.98851013]
[1748122969911,1.5923,2530.3,2530.0,1.49351013]
[1748122970141,1.8277834,2530.3,2530.2,13.31851013]
[1748122971817,0.7854834,2530.3,2530.2,13.69443263]
[1748122971978,0.55,2530.3,2530.2,13.69443263]
[1748122973719,6.58303968,2530.3,2530.2,13.69443263]
[1748122974520,6.58303968,2530.3,2530.2,11.825]
[1748122979159,6.58303968,2530.3,2530.2,40.679]
[1748122979439,7.41734704,2530.3,2530.2,11.828]
[1748122980345,6.58303968,2530.3,2530.2,13.69743263]
[1748122980546,6.58303968,2530.3,2530.2,14.69323263]
[1748122981308,6.03303968,2530.3,2530.2,14.69323263]
[1748122981714,6.58303968,2530.3,2530.2,14.69323263]
[1748122985946,6.58303968,2530.3,2530.2,12.8238]
[1748122986149,7.24134365,2530.3,2530.2,11.828]
[1748122989251,7.24134365,2530.3,2530.2,52.51]
[1748122991220,6.58303968,2530.3,2530.2,52.51]
[1748122991754,6.58303968,2530.3,2530.1,1.91571043]
[1748122991959,7.68283968,2530.2,2530.1,0.0462778]
[1748122992267,15.60803968,2530.2,2530.1,0.0462778]
[1748122992423,17.16884365,2530.2,2530.1,0.0462778]
[1748122993159,17.16884365,2530.2,2530.1,11.8742778]
[1748122993361,17.53249227,2530.2,2530.1,11.8742778]
[1748122993952,17.16884365,2530.2,2530.1,11.8742778]
[1748122994936,0.55,2530.0,2529.3,1.86943263]
[1748122995258,0.55,2529.8,2529.3,1.86943263]
[1748122995457,1.575,2529.8,2529.3,1.86943263]
[1748122996152,1.575,2529.8,2529.4,11.829]
[1748122999241,1.575,2529.8,2529.5,40.57]
[1748123000167,0.55,2529.6,2529.5,40.57]
[1748123000529,0.55,2529.6,2529.5,16.911]
[1748123002064,0.55,2529.6,2529.3,1.86943263]
[1748123002263,6.03303968,2529.7,2529.5,14.70153263]
[1748123002697,6.03303968,2529.7,2529.6,1.0021]
[1748123004037,6.03303968,2530.5,2529.6,1.0021]
[1748123004241,6.03303968,2530.5,2530.4,1.86943263]
[1748123004470,6.03303968,2530.5,2530.4,11.83]
[1748123004471,6.68288269,2530.5,2530.4,11.83]
[1748123004772,7.23288269,2530.5,2530.4,11.83]
[1748123005071,6.68288269,2530.5,2530.4,11.83]
[1748123005277,7.23288269,2530.5,2530.4,13.69943263]
[1748123009305,7.23288269,2530.5,2530.4,52.4]
[1748123012667,7.23288269,2530.5,2530.4,11.83]
[1748123019342,7.23288269,2530.5,2530.4,52.398]
[1748123019527,6.58303968,2530.5,2530.4,52.398]
[1748123019728,6.58303968,2530.5,2530.4,40.568]
[1748123020035,6.58303968,2530.5,2530.4,52.397]
[1748123021548,6.58303968,2530.5,2530.4,16.91]
[1748123021757,7.63523968,2530.5,2530.4,28.739]
[1748123021955,8.39876365,2530.5,2530.4,28.739]
[1748123022727,0.55,2530.4,2530.2,1.86943263]
[1748123022914,0.55,2530.4,2530.3,11.829]
[1748123026658,6.58303968,2530.4,2530.3,11.829]
[1748123027647,6.58303968,2530.4,2529.9,1.0804]
[1748123027857,7.36423509,2530.4,2530.1,1.86943263]
[1748123029217,6.58303968,2530.4,2530.2,16.806]
[1748123029520,6.03303968,2530.4,2530.3,2.93213263]
[1748123030030,6.58303968,2530.4,2530.3,2.93213263]
[1748123030721,6.03303968,2530.8,2530.4,1.0627]
[1748123030923,6.83186168,2530.8,2530.6,1.86943263]
[1748123031142,0.55,2530.7,2530.6,1.86943263]
[1748123039165,0.55,2530.7,2530.6,50.32843263]
[1748123039564,0.55,2530.7,2530.6,27.71443263]
[1748123040662,6.03303968,2530.8,2530.6,10.91043263]
[1748123040854,6.58303968,2530.8,2530.7,8.0]
[1748123041050,6.49843008,2531.1,2530.7,1.041]
[1748123041255,7.20958476,2531.1,2530.8,11.827]
[1748123041451,0.55,2531.0,2530.8,11.827]
[1748123041658,6.49843008,2531.3,2530.9,9.041]
[1748123041856,0.55,2531.2,2531.0,1.86943263]
[1748123042274,6.49843008,2531.3,2531.0,1.86943263]
[1748123042499,6.49843008,2531.3,2531.2,2.91043263]
[1748123042799,6.49843008,2531.3,2531.2,10.91043263]
[1748123042962,6.03303968,2531.3,2531.2,10.91043263]
[1748123043553,1.95518032,2531.5,2531.2,2.91043263]
[1748123044106,1.95518032,2531.7,2531.2,2.91043263]
[1748123044308,0.55,2531.6,2531.2,2.91043263]
[1748123044629,0.55,2531.6,2531.2,1.86943263]
[1748123044935,1.95518032,2531.7,2531.5,1.86943263]
[1748123045142,1.95518032,2531.7,2531.6,11.826]
[1748123045388,2.50518032,2531.7,2531.6,11.826]
[1748123045730,2.50518032,2531.7,2531.6,12.867]
[1748123046775,2.50518032,2531.7,2531.6,20.867]
[1748123047438,0.55,2531.7,2531.6,20.867]
[1748123048138,1.569,2531.7,2531.6,19.826]
[1748123048450,1.31520397,2531.7,2531.6,19.826]
[1748123049174,1.31520397,2531.7,2531.6,60.271]
[1748123049572,0.55,2531.7,2531.6,48.445]
[1748123049872,0.55,2531.7,2531.6,60.269]
[1748123050276,6.58303968,2531.7,2531.6,60.269]
[1748123051690,6.58303968,2531.7,2531.6,36.622]
[1748123052991,1.5645,2531.6,2530.9,1.0375]
[1748123053292,0.55,2531.2,2530.9,1.86943263]
[1748123053471,0.59939036,2531.1,2531.0,11.823]
[1748123053677,0.55,2531.1,2531.0,11.823]
[1748123054204,0.55,2531.1,2531.0,19.823]
[1748123054401,0.55,2531.1,2531.0,11.823]
[1748123056666,0.55,2531.0,2530.7,1.86943263]
[1748123056861,7.24134365,2531.0,2530.9,8.0]
[1748123057762,7.24134365,2531.0,2530.8,11.824]
[1748123057958,7.24134365,2531.0,2530.7,1.86943263]
[1748123058162,7.24134365,2531.0,2530.9,11.824]
[1748123059210,7.24134365,2531.0,2530.9,52.174]
[1748123060223,7.24134365,2531.0,2530.9,28.526]
[1748123060511,6.58303968,2531.0,2530.9,28.526]
[1748123061218,6.58303968,2531.0,2530.7,1.86943263]
[1748123061375,6.58303968,2531.0,2530.8,11.824]
[1748123061976,0.55,2531.2,2530.9,11.824]
[1748123067926,0.55,2531.0,2530.9,11.824]
[1748123068132,1.272,2531.0,2530.9,11.824]
[1748123069085,1.272,2531.0,2530.9,35.475]
[1748123069424,1.272,2531.0,2530.9,52.179]
[1748123072133,1.272,2531.0,2530.9,11.824]
[1748123072344,1.272,2531.0,2530.9,11.825]
[1748123073836,7.392,2531.0,2530.9,11.825]
[1748123079259,7.392,2531.0,2530.9,52.18]
[1748123081871,7.392,2531.0,2530.9,11.825]
[1748123087667,1.272,2531.0,2530.9,11.825]
[1748123087844,0.55,2531.0,2530.9,11.825]
[1748123089178,0.55,2531.0,2530.9,52.09]
[1748123089598,0.55,2531.0,2530.9,16.614]
[1748123089775,0.55,2531.0,2530.9,28.44]
[1748123090174,1.0153904,2531.0,2530.9,28.44]
[1748123090377,1.0153904,2531.0,2530.5,2.88533263]
[1748123090577,1.0153904,2531.0,2530.6,11.826]
[1748123091302,0.55,2530.8,2530.6,11.826]
[1748123093405,0.55,2530.9,2530.6,11.826]
[1748123093578,0.75805904,2530.9,2530.6,11.826]
[1748123097904,0.75805904,2530.9,2530.5,2.88533263]
[1748123098077,0.75805904,2530.9,2530.6,11.826]
[1748123098475,0.75805904,2530.9,2530.5,2.88533263]
[1748123098676,0.75805904,2530.9,2530.6,11.826]
[1748123098877,0.80745396,2530.9,2530.5,1.86943263]
[1748123099192,0.80745396,2530.9,2530.7,11.826]
[1748123099392,0.75805904,2530.9,2530.7,11.826]
[1748123099575,1.22344944,2530.9,2530.7,11.826]
[1748123100555,6.67,2530.8,2530.7,11.826]
[1748123100684,7.40434494,2530.8,2530.7,11.826]
[1748123103996,0.55,2530.7,2530.5,1.86943263]
[1748123104198,0.55,2530.7,2530.6,11.826]
[1748123106219,6.67,2530.7,2530.6,11.826]
[1748123107018,7.47777944,2530.7,2530.6,11.826]
[1748123107232,0.55,2530.5,2529.5,1.0908]
[1748123107513,0.55,2530.3,2529.6,13.69543263]
[1748123107675,0.55,2530.3,2529.8,1.86943263]
[1748123107874,1.5527,2530.7,2529.9,1.0908]
[1748123108280,0.55,2530.4,2529.9,1.0908]
[1748123108684,0.55,2530.3,2529.9,1.0908]
[1748123108908,0.75180904,2530.3,2529.9,1.0908]
[1748123109116,0.75180904,2530.3,2530.0,23.654]
[1748123109326,0.75180904,2530.3,2530.0,40.27]
[1748123110206,0.75180904,2530.3,2530.1,11.827]
[1748123117515,0.75180904,2530.3,2530.2,8.0]
[1748123117714,0.75180904,2530.3,2530.2,19.828]
[1748123118132,0.74808514,2530.3,2530.2,19.828]
[1748123118851,0.74808514,2530.3,2529.8,1.86943263]
[1748123119166,0.74808514,2530.3,2530.0,8.0]
[1748123119359,0.74808514,2530.3,2530.1,11.828]
[1748123121871,0.55,2530.1,2529.5,1.0345]
[1748123122038,0.55,2530.1,2529.6,11.829]
[1748123122243,0.55,2529.9,2529.6,11.829]
[1748123123165,0.55,2529.9,2529.7,11.829]
[1748123125243,0.55,2529.9,2529.8,8.0]
[1748123125441,0.55,2529.9,2529.8,19.829]
[1748123126268,0.55,2529.9,2529.8,11.829]
[1748123126987,6.67,2529.9,2529.8,11.829]
[1748123127138,7.4453,2529.9,2529.8,11.829]
[1748123129186,7.4453,2529.9,2529.8,52.018]
[1748123130187,7.4453,2529.9,2529.8,28.359]
[1748123130682,7.4453,2529.9,2529.4,8.0]
[1748123130983,0.55,2529.7,2529.3,1.86943263]
[1748123131283,0.59941876,2529.6,2529.5,11.83]
[1748123131644,0.55,2529.5,2529.1,3.01603263]
[1748123131839,0.55,2529.3,2529.1,3.01603263]
[1748123132045,0.55,2529.3,2529.2,11.83]
[1748123132943,6.67,2529.3,2529.1,1.91943263]
[1748123133280,6.67,2529.3,2529.2,11.831]
[1748123135897,6.67,2529.3,2529.2,12.9276]
[1748123136602,6.67,2529.3,2529.2,11.831]
[1748123139298,6.67,2529.3,2529.2,52.027]
[1748123140492,6.67,2529.3,2529.2,36.363]
[1748123140663,6.67,2529.3,2529.2,19.831]
[1748123149204,6.67,2529.3,2529.2,36.279]
[1748123149505,6.67,2529.3,2529.2,19.831]
[1748123152976,0.55,2529.6,2529.2,11.831]
[1748123153161,0.55,2529.4,2529.2,11.831]
[1748123159180,0.55,2529.4,2529.3,32.1615]
[1748123159476,0.55,2529.4,2529.3,31.074]
[1748123161113,0.55,2529.4,2529.3,24.448]
[1748123162013,0.55,2529.4,2529.3,8.0]
[1748123162317,6.67,2529.4,2529.3,8.0]
[1748123163921,6.67,2529.4,2529.3,9.49666323]
[1748123169235,6.67,2529.4,2529.3,25.94466323]
[1748123169542,6.67,2529.4,2529.3,27.01686323]
[1748123171844,6.67,2529.4,2529.3,10.56886323]
[1748123172259,6.67,2529.4,2529.3,10.56513932]
[1748123176567,1.0355,2529.3,2529.1,0.05]
[1748123176794,0.55,2528.6,2528.1,0.44426711]
[1748123176926,1.5855,2528.1,2528.0,0.17802524]
[1748123177121,1.63492421,2528.1,2528.0,12.01102524]
[1748123177337,1.5855,2528.1,2528.0,12.01102524]
[1748123178463,1.95711537,2528.1,2528.0,11.833]
[1748123178780,2.25043093,2528.1,2528.0,11.833]
[1748123179126,2.25043093,2528.1,2528.0,51.868]
[1748123179965,2.25043093,2528.1,2528.0,28.199]
[1748123180375,0.55,2528.0,2527.3,1.8735954]
[1748123181687,0.55,2528.0,2527.4,11.835]
[1748123181847,0.55,2527.8,2527.5,8.0]
[1748123183687,0.55,2527.8,2527.2,1.8735954]
[1748123183862,1.6242,2527.7,2527.6,11.837]
[1748123186546,0.55,2527.7,2527.6,11.837]
[1748123189295,1.8735954,2528.7,2527.6,11.837]
[1748123189296,1.0525,2528.3,2527.6,53.7585954]
[1748123189499,1.0525,2528.3,2527.6,13.7105954]
[1748123189700,1.0525,2528.3,2527.8,1.8735954]
[1748123190107,0.55,2528.2,2527.8,1.8735954]
[1748123190285,1.0525,2528.3,2527.8,1.8735954]
[1748123190772,0.55,2528.2,2527.8,1.8735954]
[1748123193011,1.6222,2528.9,2527.8,1.8735954]
[1748123193171,0.55,2528.7,2527.9,1.0736]
[1748123194915,0.55,2528.8,2527.9,1.0736]
[1748123195113,0.55,2528.8,2528.0,1.8735954]
[1748123195913,0.55,2528.8,2528.1,11.839]
[1748123196278,0.55,2528.8,2528.2,1.8735954]
[1748123199109,0.55,2528.8,2528.3,6.629]
[1748123199412,6.12,2528.8,2528.6,1.8735954]
[1748123199610,0.55,2528.9,2528.6,1.8735954]
[1748123200181,6.12,2528.9,2528.6,1.8735954]
[1748123200383,0.55,2528.8,2528.6,1.8735954]
[1748123208948,1.217,2528.8,2528.2,0.9983]
[1748123209147,0.55,2528.4,2528.3,33.34]
[1748123209309,0.55,2528.4,2528.3,45.176]
[1748123209511,0.55,2528.4,2528.3,11.836]
[1748123210039,0.9209457,2528.4,2528.3,11.836]
[1748123210247,1.12268027,2528.4,2528.3,11.836]
[1748123212015,7.24268027,2528.4,2527.6,8.0]
[1748123212219,0.55,2528.2,2527.8,8.0]
[1748123212513,0.55,2528.0,2527.4,1.8735954]
[1748123212718,0.55,2527.6,2527.1,0.05]
[1748123212917,0.55,2527.4,2527.2,11.837]
[1748123213246,1.32499,2527.4,2527.3,8.0]
[1748123216539,0.55,2527.2,2525.5,1.0343]
[1748123216739,0.55,2526.8,2526.2,11.84]
[1748123216955,0.55,2526.6,2526.2,11.84]
[1748123217124,6.67,2526.6,2526.2,11.84]
[1748123217326,0.55,2526.9,2526.5,1.8735954]
[1748123218174,0.55,2526.9,2526.2,12.8743]
[1748123218465,0.20936228,2526.8,2526.4,1.8735954]
[1748123218667,0.20936228,2526.8,2526.2,12.8743]
[1748123218668,0.55,2526.9,2526.6,1.8735954]
[1748123218873,0.855,2527.1,2526.8,1.8735954]
[1748123219173,7.1999,2527.3,2527.0,8.0]
[1748123219368,0.55,2527.2,2527.0,8.0]
[1748123219938,0.55,2527.2,2526.8,1.8735954]
[1748123220139,0.55,2527.0,2526.8,1.8735954]
[1748123220536,7.1999,2527.3,2526.8,1.8735954]
[1748123220537,0.55,2527.2,2526.8,1.8735954]
[1748123221269,0.55,2527.3,2527.0,1.8735954]
[1748123221622,0.55,2527.4,2527.0,1.8735954]
[1748123222856,6.12,2527.6,2527.0,1.8735954]
[1748123223043,0.75288263,2527.5,2527.0,1.8735954]
[1748123223372,0.55,2527.4,2527.0,1.8735954]
[1748123226227,0.55,2527.4,2527.2,8.0]
[1748123226577,0.55,2527.4,2527.3,19.842]
[1748123229166,0.55,2527.4,2527.3,59.831]
[1748123229321,1.29228826,2527.4,2527.3,36.147]
[1748123229962,1.29228826,2527.4,2527.3,24.305]
[1748123230142,1.29228826,2527.4,2527.3,36.147]
[1748123230462,1.29228826,2527.4,2527.3,19.842]
[1748123230660,2.35658826,2527.4,2526.8,1.8735954]
[1748123230860,0.28508304,2527.3,2526.9,11.842]
[1748123231069,0.23565883,2527.3,2526.9,11.842]
[1748123231361,0.23565883,2527.3,2526.8,1.8735954]
[1748123231362,0.55,2527.2,2527.0,11.842]
[1748123232956,6.67,2527.1,2527.0,11.842]
[1748123233468,7.36056588,2527.1,2526.8,8.0]
[1748123233767,7.36056588,2527.1,2527.0,19.842]
[1748123233964,6.67,2527.1,2527.0,19.842]
[1748123236170,6.67,2527.1,2527.0,20.9297]
[1748123236554,6.67,2527.1,2527.0,22.8032954]
[1748123237548,6.67,2527.1,2527.0,22.8042954]
[1748123239173,6.67,2527.1,2527.0,39.0542954]
[1748123239359,6.67,2527.1,2527.0,26.1235954]
[1748123239544,7.337,2527.1,2527.0,37.9655954]
[1748123240055,7.337,2527.1,2527.0,21.7155954]
[1748123241661,7.337,2527.1,2527.0,9.8735954]
[1748123241849,7.70884524,2527.1,2527.0,21.7165954]
[1748123242054,0.55,2527.0,2526.7,1.8735954]
[1748123242254,1.42937452,2527.0,2526.8,11.843]
[1748123243341,0.55,2526.8,2526.5,9.8735954]
[1748123243540,0.55,2526.8,2526.2,1.0786]
[1748123243781,0.55,2526.6,2526.3,11.843]
[1748123244441,0.55,2526.6,2526.4,8.0]
[1748123244975,0.55,2526.6,2526.5,1.8735954]
[1748123245178,0.55,2526.6,2526.5,13.7165954]
[1748123246876,0.55,2526.6,2526.5,14.7951954]
[1748123247472,6.12,2526.7,2526.5,14.7951954]
[1748123247799,6.67,2526.9,2526.5,14.7951954]
[1748123247954,6.67,2526.9,2526.8,1.8735954]
[1748123248390,0.46372284,2527.1,2526.8,2.9521954]
[1748123248551,0.46372284,2527.1,2527.0,1.8735954]
[1748123249287,0.92218943,2527.1,2527.0,49.8125954]
[1748123249847,0.92218943,2527.1,2527.0,9.8735954]
[1748123250048,0.55,2526.8,2524.8,1.25958018]
[1748123250299,1.0593,2526.3,2525.0,1.87723669]
[1748123250594,0.55,2525.6,2525.3,1.87723669]
[1748123250805,0.55,2525.6,2525.3,9.87723669]
[1748123250952,0.55,2525.6,2525.3,1.87723669]
[1748123251148,0.46372284,2525.7,2525.3,2.95583669]
[1748123251392,0.46372284,2525.7,2525.6,1.87723669]
[1748123251561,0.46372284,2525.7,2525.6,10.95583669]
[1748123251762,0.46372284,2525.7,2525.6,12.97937289]
[1748123252488,1.11559867,2526.6,2525.6,12.97937289]
[1748123252489,0.55,2526.7,2525.7,1.0786]
[1748123252667,0.46372284,2526.8,2526.3,1.0786]
[1748123252870,0.46372284,2526.8,2526.4,11.844]
[1748123252871,0.55,2526.7,2526.4,11.844]
[1748123253073,0.46372284,2526.8,2526.4,11.844]
[1748123253470,0.55,2526.7,2526.4,11.844]
[1748123254868,0.55,2526.9,2526.4,11.844]
[1748123255625,0.55,2526.9,2526.3,9.0786]
[1748123255771,1.0593,2527.0,2526.6,8.0]
[1748123256109,0.37104847,2526.9,2526.6,8.0]
[1748123256862,0.55,2527.2,2526.6,8.0]
[1748123257080,0.21035228,2527.1,2526.6,8.0]
[1748123257792,0.37110913,2527.0,2526.6,8.0]
[1748123258173,0.55,2526.9,2526.6,8.0]
[1748123259090,1.75234094,2527.6,2526.6,8.0]
[1748123259091,0.55,2527.2,2526.6,8.0]
[1748123259293,1.68922421,2527.4,2526.6,8.0]
[1748123259498,0.55,2527.0,2526.7,11.845]
[1748123259792,0.55,2527.0,2526.8,11.845]
[1748123260093,0.55,2527.0,2526.9,11.845]
[1748123260817,0.76035228,2527.0,2526.9,11.845]
[1748123261095,0.55,2527.0,2526.9,11.845]
[1748123261456,0.46372284,2527.1,2526.9,15.74577289]
[1748123261796,0.55,2527.4,2526.9,15.74577289]
[1748123262008,0.46372284,2527.5,2526.9,15.74577289]
[1748123262224,0.55,2527.4,2526.9,11.845]
[1748123262382,0.55,2527.2,2526.9,11.845]
[1748123262582,0.55,2527.2,2527.0,11.845]
[1748123263176,0.92131905,2527.1,2527.0,19.845]
[1748123263384,0.37131905,2527.1,2527.0,19.845]
[1748123264191,0.51372284,2527.9,2527.1,8.0]
[1748123264403,0.51372284,2527.9,2527.4,8.0]
[1748123264404,0.55,2527.8,2527.4,8.0]
[1748123264618,0.51372284,2527.9,2527.4,8.0]
[1748123265222,0.55,2527.7,2527.4,8.0]
[1748123265689,0.55,2527.7,2527.5,11.844]
[1748123266217,0.9213443,2527.6,2527.5,11.844]
[1748123267836,0.3713443,2527.6,2527.5,11.844]
[1748123267984,0.3713443,2527.6,2527.5,12.8866]
[1748123268792,0.55,2527.8,2527.5,12.8866]
[1748123269104,0.55,2527.8,2527.6,22.883]
[1748123269622,0.55,2527.8,2527.7,8.0]
[1748123272204,0.05,2527.9,2527.7,8.0]
[1748123278539,0.05,2527.9,2527.8,11.841]
[1748123279040,0.05,2527.9,2527.7,8.0]
[1748123279240,0.55,2527.8,2527.3,3.90077289]
[1748123279752,0.55,2527.8,2527.4,11.841]
[1748123279911,0.55,2527.8,2527.5,11.841]
[1748123285662,1.6336,2527.7,2527.6,11.841]
[1748123285826,0.55,2527.7,2527.6,11.841]
[1748123286965,0.05,2527.9,2527.6,12.8596]
[1748123287737,0.05,2527.9,2527.6,16.76037289]
[1748123288426,0.05,2527.9,2527.6,15.74177289]
[1748123288623,0.05,2527.9,2527.7,1.0186]
[1748123288862,0.05,2527.9,2527.7,9.0186]
[1748123289363,0.05,2527.9,2527.8,16.226]
[1748123289776,0.05,2527.9,2527.7,9.0186]
[1748123291449,0.05,2527.9,2527.8,1.0257]
[1748123293252,0.46372284,2528.7,2527.8,1.0257]
[1748123293477,0.66311673,2528.9,2527.6,15.74177289]
[1748123293478,0.05,2528.9,2528.5,4.92647289]
[1748123293785,0.6,2528.9,2528.8,3.90077289]
[1748123294076,0.05,2528.9,2528.6,11.84]
[1748123294240,0.55,2528.7,2528.3,3.90077289]
[1748123294437,0.55,2528.7,2528.4,11.84]
[1748123295858,0.05,2528.9,2528.4,12.8657]
[1748123296253,0.05,2528.9,2528.6,3.90077289]
[1748123298386,0.05,2528.9,2528.4,1.0257]
[1748123298571,0.05,2528.9,2528.7,15.73877289]
[1748123299179,0.04623073,2528.9,2528.8,39.897]
[1748123299885,0.04623073,2528.9,2528.8,16.222]
[1748123300050,0.04623073,2528.9,2528.7,15.73877289]
[1748123300592,0.04623073,2528.9,2528.8,9.0257]
[1748123301010,0.04623073,2528.9,2528.8,8.0]
[1748123301298,0.04623073,2528.9,2528.7,15.73877289]
[1748123301299,0.04623073,2528.9,2528.7,3.90077289]
[1748123301601,0.04623073,2528.9,2528.8,11.838]
[1748123304679,0.04623073,2528.9,2528.8,11.836]
[1748123304987,1.59783073,2528.9,2528.8,11.836]
[1748123305557,0.59623073,2528.9,2528.8,11.836]
[1748123308313,0.59623073,2528.9,2528.3,1.085]
[1748123308497,0.59623073,2528.9,2528.8,11.836]
[1748123308819,0.55,2528.8,2528.5,3.90077289]
[1748123309002,0.04623073,2528.9,2528.6,11.836]
[1748123309208,0.04623073,2528.9,2528.7,39.882]
[1748123309381,0.04623073,2528.9,2528.7,16.211]
[1748123309707,0.04623073,2528.9,2528.5,3.90077289]
[1748123309884,0.59623073,2528.9,2528.8,11.836]
[1748123313120,0.04623073,2528.9,2528.8,12.8581]
[1748123314177,0.04623073,2528.9,2528.8,11.836]
[1748123314418,0.55,2528.8,2528.6,3.90077289]
[1748123314717,0.55,2528.8,2528.7,11.835]
[1748123315491,6.67,2528.8,2528.7,11.835]
[1748123317410,6.67,2528.8,2528.7,13.70672423]
[1748123317718,6.67,2528.8,2528.7,11.835]
[1748123317921,0.04623073,2528.9,2528.7,11.835]
[1748123318937,0.04623073,2528.9,2528.8,8.0]
[1748123319235,0.04623073,2528.9,2528.8,47.881]
[1748123319621,0.04623073,2528.9,2528.8,24.21]
[1748123320122,0.04623073,2528.9,2528.8,8.0]
[1748123320505,0.04623073,2528.9,2528.8,11.89251407]
[1748123323430,0.04623073,2528.9,2528.8,23.72751407]
[1748123324234,0.04623073,2528.9,2528.8,24.79381407]
[1748123326940,0.37283217,2529.8,2528.9,8.0]
[1748123327096,0.37283217,2529.8,2529.6,3.89251407]
[1748123327298,0.37283217,2529.8,2529.7,11.834]
[1748123327941,0.05,2529.9,2529.7,11.834]
[1748123329107,0.05,2529.9,2529.8,39.874]
[1748123333010,0.05,2529.9,2529.8,16.208]
[1748123333748,0.05,2529.9,2529.7,15.72651407]
[1748123334244,0.05,2529.9,2529.7,16.79791407]
[1748123335726,0.05,2529.9,2529.8,11.832]
[1748123335727,0.6,2529.9,2529.8,11.832]
[1748123337651,0.6,2529.9,2529.8,13.70196758]
[1748123339251,0.6,2529.9,2529.8,53.56296758]
[1748123340357,0.6,2529.9,2529.8,29.89996758]
[1748123342259,0.6,2529.9,2529.8,13.70196758]
[1748123342631,0.55,2529.8,2529.4,1.86996758]
[1748123342959,0.55,2529.8,2529.5,11.831]
[1748123343875,0.55,2529.6,2529.5,11.831]
[1748123344961,0.55,2529.8,2529.5,11.831]
[1748123347657,0.37235247,2529.7,2529.5,11.831]
[1748123347838,6.12,2529.6,2529.5,11.831]
[1748123348040,0.55,2529.5,2529.4,1.86996758]
[1748123348267,0.55,2529.5,2529.4,13.70096758]
[1748123349062,0.55,2529.5,2529.4,13.70196758]
[1748123349275,0.55,2529.5,2529.4,29.89996758]
[1748123349885,0.55,2529.5,2529.4,13.70196758]
[1748123352492,6.12,2529.6,2529.4,13.70196758]
[1748123352881,0.55,2529.8,2529.4,11.832]
[1748123353087,0.55,2529.8,2529.5,1.86996758]
[1748123353699,0.05,2529.9,2529.5,1.86996758]
[1748123354901,0.37287184,2529.8,2529.5,1.86996758]
[1748123356060,0.37287184,2529.7,2529.5,1.86996758]
[1748123356856,0.92287184,2529.7,2529.6,0.9935]
[1748123357059,0.92287184,2529.7,2529.6,2.86346758]
[1748123357462,0.92287184,2529.7,2529.6,0.9935]
[1748123357695,0.55,2529.7,2529.6,0.9935]
[1748123357901,0.55,2529.7,2529.5,1.86996758]